bitfinex/quotes_BTCUSD_20251219
["timestamp","ask_amount","ask_price","bid_price","bid_amount"]
[1766122397486,0.0058,86843.0,86821.0,0.83125572]
[1766122397608,0.0058,86843.0,86822.0,0.01151781]
[1766122397810,0.0058,86843.0,86821.0,0.58938]
[1766122398051,0.07716186,86848.0,86821.0,0.60089795]
[1766122398249,0.02878625,86847.0,86821.0,0.58938]
[1766122398456,0.0656475,86848.0,86822.0,0.06343781]
[1766122398668,0.0656475,86848.0,86823.0,0.01151768]
[1766122398959,0.0656475,86848.0,86824.0,0.01151755]
[1766122399109,0.0656475,86848.0,86823.0,0.24187131]
[1766122399314,0.0656475,86848.0,86824.0,0.01151755]
[1766122399737,0.0656475,86848.0,86823.0,0.24187013]
[1766122399921,0.0656475,86848.0,86822.0,0.05192]
[1766122400145,0.07716186,86848.0,86822.0,0.05192]
[1766122400356,0.0656475,86848.0,86822.0,0.06343781]
[1766122400606,0.0656475,86848.0,86823.0,1.04802]
[1766122400768,0.0656475,86848.0,86824.0,0.01151755]
[1766122400955,0.0656475,86848.0,86831.0,0.01151662]
[1766122401159,0.0598475,86848.0,86832.0,0.0058]
[1766122403470,0.06478769,86855.0,86832.0,0.0058]
[1766122403593,0.0598475,86849.0,86833.0,1.04802]
[1766122403789,0.0598475,86849.0,86832.0,0.0058]
[1766122404223,0.10796956,86858.0,86832.0,0.01731649]
[1766122404451,0.0598475,86849.0,86832.0,0.01731649]
[1766122404653,0.0598475,86849.0,86832.0,0.0058]
[1766122405213,0.0598475,86849.0,86832.0,0.01731649]
[1766122405482,0.0598475,86849.0,86833.0,0.01151635]
[1766122405690,0.0058,86859.0,86837.0,0.45864]
[1766122405864,0.0058,86859.0,86838.0,0.58938]
[1766122406067,0.0058,86859.0,86839.0,0.0058]
[1766122406786,0.00591002,86859.0,86839.0,0.0058]
[1766122408204,0.0598475,86857.0,86839.0,0.0058]
[1766122408366,0.0598475,86857.0,86839.0,0.00591002]
[1766122409217,0.0598475,86864.0,86843.0,0.23029939]
[1766122409360,0.23022453,86872.0,86847.0,0.58938]
[1766122409361,0.0058,86872.0,86847.0,0.58938]
[1766122409561,0.06883907,86872.0,86849.0,0.01151423]
[1766122409763,0.0058,86872.0,86850.0,0.01381692]
[1766122410156,0.0058,86872.0,86850.0,0.02533102]
[1766122410365,0.0058,86872.0,86848.0,0.2475995]
[1766122410366,0.0058,86872.0,86848.0,0.23608699]
[1766122410566,0.0058,86872.0,86848.0,0.24760135]
[1766122410820,0.0058,86872.0,86848.0,0.0058]
[1766122411607,0.0058,86872.0,86849.0,0.23028474]
[1766122411810,0.0907,86877.0,86852.0,1.05953383]
[1766122411975,0.0907,86877.0,86852.0,1.04802]
[1766122412178,0.01151079,86875.0,86852.0,1.04802]
[1766122412375,0.33242335,86877.0,86852.0,0.45864]
[1766122412611,0.0907,86876.0,86848.0,0.01731436]
[1766122412832,0.65706478,86880.0,86848.0,0.01731436]
[1766122412833,0.23018944,86885.0,86859.0,0.58938]
[1766122413039,0.0058,86884.0,86860.0,0.06573533]
[1766122413490,0.15316513,86887.0,86862.0,0.24176168]
[1766122413690,0.15316513,86887.0,86862.0,0.24176204]
[1766122413886,0.15316513,86887.0,86864.0,0.01151224]
[1766122414129,0.15316513,86887.0,86864.0,0.02532693]
[1766122414305,0.06246513,86887.0,86864.0,0.02532693]
[1766122414516,0.0907,86889.0,86865.0,0.01151211]
[1766122414718,0.0907,86889.0,86866.0,0.0058]
[1766122415354,0.0345922,86891.0,86870.0,0.60089145]
[1766122415570,0.0598475,86892.0,86873.0,0.45864]
[1766122415814,0.0907,86898.0,86877.0,0.01151052]
[1766122416022,0.00010993,86898.0,86892.0,0.00042441]
[1766122416240,0.00010993,86898.0,86893.0,0.0058]
[1766122416703,0.00010993,86898.0,86893.0,0.005492]
[1766122417143,0.00010993,86898.0,86875.0,1.07756]
[1766122417347,0.00010993,86898.0,86876.0,0.05192]
[1766122418010,0.00010993,86898.0,86876.0,0.66466]
[1766122418649,0.01737154,86898.0,86876.0,0.66466]
[1766122419793,0.01726181,86897.0,86877.0,0.05192]
[1766122420448,0.00010993,86898.0,86882.0,0.01150986]
[1766122420653,0.00010993,86898.0,86883.0,0.0058]
[1766122423373,0.00010993,86898.0,86874.0,0.24172808]
[1766122423374,0.0598475,86877.0,86844.0,1.11214386]
[1766122423575,0.00579999,86866.0,86851.0,0.05192]
[1766122423812,0.00579999,86866.0,86844.0,1.07756]
[1766122424000,0.01151317,86857.0,86851.0,0.04612]
[1766122424173,0.000366,86851.0,86832.0,0.46482]
[1766122424424,0.000366,86851.0,86833.0,0.05192]
[1766122424629,0.01151357,86854.0,86833.0,0.05192]
[1766122424761,0.01151357,86854.0,86833.0,0.05228659]
[1766122424970,0.0115137,86853.0,86833.0,0.05228659]
[1766122425177,0.01151357,86854.0,86833.0,0.66502659]
[1766122425410,0.24178733,86855.0,86833.0,0.66502659]
[1766122425610,0.01151357,86854.0,86833.0,0.66502659]
[1766122425818,0.24178733,86855.0,86833.0,0.66502659]
[1766122425819,0.01151344,86855.0,86833.0,0.66502659]
[1766122426018,0.0115137,86853.0,86833.0,0.66502659]
[1766122426220,0.0115137,86853.0,86834.0,0.05192]
[1766122426615,0.0115141,86850.0,86834.0,0.05192]
[1766122426820,0.01727135,86849.0,86834.0,0.05192]
[1766122427067,0.01727115,86850.0,86834.0,0.05192]
[1766122427665,0.01727075,86852.0,86834.0,0.05192]
[1766122427848,0.02878458,86852.0,86834.0,0.05192]
[1766122428173,0.24179383,86851.0,86834.0,0.05192]
[1766122428316,0.24178317,86855.0,86834.0,0.05192]
[1766122428518,0.0115133,86856.0,86835.0,0.61274]
[1766122428723,0.01151224,86864.0,86840.0,0.46482]
[1766122429060,0.23022334,86873.0,86834.0,0.05192]
[1766122429061,0.03459846,86871.0,86847.0,0.0115145]
[1766122429264,0.01151065,86876.0,86848.0,0.01731436]
[1766122429472,0.01151092,86874.0,86851.0,0.46482]
[1766122429796,0.01151132,86871.0,86852.0,0.65886]
[1766122429993,0.01151158,86869.0,86852.0,0.04612]
[1766122430396,0.24173931,86871.0,86852.0,0.04612]
[1766122430598,0.01151145,86870.0,86852.0,0.04612]
[1766122430797,0.01151158,86869.0,86852.0,0.04612]
[1766122431008,0.24174392,86869.0,86852.0,0.04612]
[1766122431205,0.01151171,86868.0,86852.0,0.04612]
[1766122431578,0.01151198,86866.0,86852.0,0.04612]
[1766122431820,0.01151198,86866.0,86838.0,0.01151569]
[1766122431821,0.000366,86852.0,86834.0,1.07756]
[1766122432017,0.000366,86852.0,86835.0,0.05192]
[1766122432239,0.01726976,86857.0,86835.0,0.05192]
[1766122432610,0.02878293,86857.0,86835.0,0.05192]
[1766122433079,0.0115133,86856.0,86835.0,0.05192]
[1766122433222,0.01727016,86855.0,86835.0,0.05192]
[1766122434060,0.01151251,86862.0,86835.0,0.05192]
[1766122434292,0.01151251,86862.0,86836.0,0.05192]
[1766122434293,0.01151264,86861.0,86836.0,0.05192]
[1766122434497,0.01151277,86860.0,86836.0,0.05192]
[1766122435001,0.24176425,86862.0,86836.0,0.05192]
[1766122435546,0.01151251,86862.0,86836.0,0.05192]
[1766122435746,0.30160964,86863.0,86836.0,0.05192]
[1766122436282,0.01151264,86861.0,86836.0,0.05192]
[1766122436486,0.23025041,86862.0,86836.0,0.05192]
[1766122436713,0.01151264,86861.0,86836.0,0.05192]
[1766122436907,0.01151251,86862.0,86836.0,0.05192]
[1766122438051,0.01151264,86861.0,86836.0,0.05192]
[1766122438532,0.01151291,86859.0,86836.0,0.05192]
[1766122438693,0.01151317,86857.0,86836.0,0.05192]
[1766122438899,0.24177408,86858.0,86836.0,0.05192]
[1766122439433,0.01151291,86859.0,86836.0,0.05192]
[1766122439633,0.01151304,86858.0,86836.0,0.05192]
[1766122439796,0.24177139,86859.0,86836.0,0.05192]
[1766122440132,0.01151317,86857.0,86837.0,0.05192]
[1766122440281,0.24177139,86859.0,86837.0,0.05192]
[1766122440883,0.92355901,86860.0,86837.0,0.05192]
[1766122441167,0.01151291,86859.0,86837.0,0.05192]
[1766122441433,0.92355901,86860.0,86837.0,0.05192]
[1766122441588,0.01151291,86859.0,86837.0,0.05192]
[1766122441788,1.15381692,86860.0,86837.0,0.05192]
[1766122441984,0.24177068,86860.0,86837.0,0.05192]
[1766122442189,0.01151291,86859.0,86837.0,0.05192]
[1766122442426,0.24177068,86860.0,86837.0,0.05192]
[1766122442688,0.30160975,86863.0,86837.0,0.66466]
[1766122443498,0.30160975,86863.0,86837.0,0.05192]
[1766122443704,0.30160975,86863.0,86838.0,1.05583]
[1766122444122,0.07135988,86863.0,86838.0,0.45837]
[1766122444329,0.0598475,86863.0,86839.0,0.59746]
[1766122444526,0.0598475,86863.0,86840.0,0.59746]
[1766122444747,0.0598475,86863.0,86841.0,0.45837]
[1766122444939,0.23023704,86867.0,86837.0,0.29375033]
[1766122444940,0.24173498,86872.0,86845.0,0.45837]
[1766122445116,0.01151132,86871.0,86849.0,0.59746]
[1766122445320,0.07711328,86877.0,86850.0,0.01961692]
[1766122445543,0.0598475,86877.0,86854.0,0.59746]
[1766122445750,0.0598475,86877.0,86858.0,0.56332]
[1766122445906,0.0598475,86880.0,86860.0,0.56332]
[1766122446103,0.0598475,86880.0,86861.0,0.56912]
[1766122446542,0.000366,86861.0,86858.0,0.04612]
[1766122446754,0.000366,86861.0,86833.0,0.01151635]
[1766122446755,0.24177323,86859.0,86856.0,3e-08]
[1766122446907,0.01726956,86858.0,86841.0,0.56332]
[1766122447106,0.01726956,86858.0,86842.0,0.05192]
[1766122447722,0.91204624,86860.0,86842.0,0.05192]
[1766122448852,0.0598475,86865.0,86843.0,0.491]
[1766122449047,0.0598475,86865.0,86845.0,0.56332]
[1766122449233,0.01151224,86864.0,86845.0,0.56332]
[1766122449850,0.01151238,86863.0,86845.0,0.56332]
[1766122450718,0.0598475,86865.0,86845.0,0.56332]
[1766122451236,0.01151224,86864.0,86845.0,0.56332]
[1766122451778,0.07135961,86865.0,86845.0,0.56332]
[1766122452354,0.01151224,86864.0,86845.0,0.56332]
[1766122452556,0.01151224,86864.0,86844.0,0.491]
[1766122452723,0.01151238,86863.0,86844.0,0.491]
[1766122452920,0.91204624,86860.0,86842.0,0.05192]
[1766122453321,0.01151251,86862.0,86842.0,0.05192]
[1766122453563,0.24176045,86863.0,86842.0,0.05192]
[1766122453974,0.01151264,86861.0,86842.0,0.05192]
[1766122454139,0.2417656,86861.0,86842.0,0.05192]
[1766122454343,0.01151264,86861.0,86842.0,0.05192]
[1766122454677,0.000366,86842.0,86841.0,0.00036659]
[1766122454830,0.000366,86842.0,86841.0,0.05228659]
[1766122455025,0.01727155,86848.0,86841.0,0.05228659]
[1766122455478,0.0598475,86849.0,86841.0,0.05228659]
[1766122455789,0.0598475,86849.0,86841.0,0.00036659]
[1766122455790,0.01727155,86848.0,86841.0,0.00036659]
[1766122455948,0.01727155,86848.0,86842.0,0.0058]
[1766122456377,0.01727155,86848.0,86842.0,0.005434]
[1766122456538,0.01727155,86848.0,86841.0,0.00036659]
[1766122456743,0.01727155,86848.0,86843.0,0.0058]
[1766122456992,0.01727155,86848.0,86841.0,0.00036659]
[1766122457152,0.01727155,86848.0,86844.0,0.0058]
[1766122457369,0.01727155,86848.0,86841.0,0.00036659]
[1766122457566,0.01727155,86848.0,86842.0,0.0058]
[1766122459099,0.01727155,86848.0,86841.0,0.00036659]
[1766122459100,0.23029074,86847.0,86841.0,0.00036659]
[1766122459260,0.01151476,86845.0,86842.0,2e-08]
[1766122459458,0.01151476,86845.0,86827.0,0.491]
[1766122459459,0.01727235,86844.0,86822.0,0.56332]
[1766122459661,0.01727235,86844.0,86816.0,0.01151861]
[1766122459662,0.0598475,86835.0,86823.0,0.04612]
[1766122459868,0.01727433,86834.0,86824.0,0.0058]
[1766122460070,0.01727433,86834.0,86825.0,0.0058]
[1766122461352,0.01727433,86834.0,86816.0,0.56332]
[1766122461558,0.01727433,86834.0,86817.0,0.05192]
[1766122462777,0.01727433,86834.0,86818.0,0.05192]
[1766122463638,0.01727433,86834.0,86815.0,0.56332]
[1766122463846,0.01727433,86834.0,86816.0,0.05192]
[1766122467106,0.24760115,86834.0,86817.0,0.05192]
[1766122467224,0.25911737,86834.0,86817.0,0.04192]
[1766122467432,0.24184304,86834.0,86813.0,0.56332]
[1766122467637,0.01727453,86833.0,86814.0,0.05192]
[1766122467832,0.0598475,86835.0,86814.0,0.05192]
[1766122468567,0.01727433,86834.0,86814.0,0.05192]
[1766122468990,0.01727433,86834.0,86815.0,0.05192]
[1766122469584,0.0598475,86835.0,86815.0,0.05192]
[1766122470588,0.0598475,86835.0,86815.0,1.10624]
[1766122470757,0.23610337,86842.0,86816.0,0.01151861]
[1766122470758,0.0058,86842.0,86816.0,0.01151861]
[1766122470960,0.01806695,86844.0,86819.0,1.05432]
[1766122471279,0.03538185,86844.0,86817.0,1.05432]
[1766122471456,0.02386695,86844.0,86817.0,0.24188804]
[1766122471682,0.01151503,86843.0,86816.0,0.01151861]
[1766122471889,0.24181804,86843.0,86817.0,1.05432]
[1766122472131,0.24181871,86842.0,86815.0,0.06343874]
[1766122472332,0.01151516,86842.0,86815.0,0.06343874]
[1766122472534,0.01151529,86841.0,86816.0,1.05432]
[1766122472759,0.01151516,86842.0,86815.0,0.06343874]
[1766122472973,0.24181804,86843.0,86816.0,1.05432]
[1766122473175,0.01151503,86843.0,86816.0,0.24188982]
[1766122473357,0.01151516,86842.0,86816.0,1.05432]
[1766122473571,0.01151503,86843.0,86816.0,0.01151861]
[1766122473946,0.24181569,86843.0,86817.0,1.05432]
[1766122474155,0.01151503,86843.0,86816.0,0.24189031]
[1766122474775,0.03538185,86844.0,86817.0,0.01151848]
[1766122474914,0.0173149,86844.0,86817.0,0.01151848]
[1766122475240,0.24761317,86844.0,86817.0,0.01151848]
[1766122475620,0.24761317,86844.0,86818.0,1.06077]
[1766122475835,0.0058,86843.0,86817.0,0.01151848]
[1766122476252,0.01151503,86843.0,86821.0,0.59074]
[1766122476604,0.01731503,86843.0,86822.0,0.0058]
[1766122476811,0.01151529,86841.0,86822.0,0.59654]
[1766122477013,0.01151516,86842.0,86822.0,0.59654]
[1766122477332,0.0598475,86834.0,86816.0,0.59074]
[1766122477533,0.0598475,86834.0,86817.0,0.59074]
[1766122477730,0.0598475,86834.0,86817.0,1.06077]
[1766122478696,0.0598475,86834.0,86810.0,0.00025363]
[1766122478697,0.91204624,86830.0,86818.0,0.0058]
[1766122478866,0.01727533,86829.0,86818.0,0.0058]
[1766122479047,0.01151702,86828.0,86818.0,0.0058]
[1766122479245,0.02879288,86827.0,86818.0,0.0058]
[1766122479661,0.24186302,86826.0,86818.0,0.0058]
[1766122479881,0.01727613,86825.0,86818.0,0.0058]
[1766122480725,0.25914383,86825.0,86818.0,0.0058]
[1766122480935,0.01151768,86823.0,86818.0,0.0058]
[1766122481265,0.01727672,86822.0,86818.0,0.0058]
[1766122481399,0.2476157,86829.0,86818.0,0.0058]
[1766122481599,0.01151742,86825.0,86818.0,0.0058]
[1766122481801,0.02879387,86824.0,86818.0,0.0058]
[1766122482868,0.0598475,86820.0,86818.0,0.0058]
[1766122483064,0.01727632,86824.0,86818.0,0.0058]
[1766122483248,0.01727652,86823.0,86818.0,0.0058]
[1766122483469,0.02879355,86825.0,86818.0,0.0058]
[1766122483886,0.02879355,86825.0,86819.0,0.0058]
[1766122484353,0.01151755,86824.0,86819.0,0.0058]
[1766122484561,0.01727652,86823.0,86819.0,0.0058]
[1766122484824,0.02879387,86824.0,86819.0,0.0058]
[1766122485047,0.25914651,86824.0,86819.0,0.0058]
[1766122485273,0.07136558,86820.0,86810.0,0.00025363]
[1766122485506,0.01727732,86819.0,86811.0,0.0058]
[1766122486591,0.0598475,86818.0,86811.0,0.0058]
[1766122486933,0.01034282,86817.0,86811.0,0.0058]
[1766122487863,0.01034282,86817.0,86811.0,0.00591002]
[1766122488028,0.01034282,86817.0,86811.0,0.00011002]
[1766122488599,0.01034282,86819.0,86811.0,0.00011002]
[1766122489204,0.01034282,86819.0,86812.0,0.0058]
[1766122491440,0.07136558,86820.0,86812.0,0.0058]
[1766122491643,0.24187075,86826.0,86812.0,0.0058]
[1766122491859,0.01731649,86832.0,86820.0,0.001099]
[1766122491860,0.68456222,86822.0,86820.0,0.001099]
[1766122492213,0.24187222,86823.0,86813.0,0.0058]
[1766122492214,0.01151795,86821.0,86813.0,0.0058]
[1766122492338,0.0598475,86820.0,86813.0,0.0058]
[1766122493954,0.68456222,86823.0,86813.0,0.0058]
[1766122494191,0.0598475,86820.0,86813.0,0.0058]
[1766122495112,0.60096601,86823.0,86813.0,0.0058]
[1766122495289,0.0598475,86820.0,86813.0,0.0058]
[1766122495678,0.0587485,86820.0,86813.0,0.0058]
[1766122496290,0.07026658,86820.0,86813.0,0.0058]
[1766122496510,0.23034558,86827.0,86813.0,0.0058]
[1766122496709,0.01151662,86831.0,86813.0,0.59654]
[1766122496909,0.68456222,86830.0,86814.0,0.59074]
[1766122497142,0.69061222,86830.0,86814.0,0.584684]
[1766122497326,0.00605,86829.0,86814.0,0.584684]
[1766122498120,0.00605,86829.0,86813.0,0.47583]
[1766122499655,0.00605,86829.0,86813.0,1.06657]
[1766122500444,0.49960027,86830.0,86813.0,1.06657]
[1766122500839,0.01151529,86841.0,86813.0,0.0058]
[1766122501060,0.0058,86834.0,86818.0,0.47003]
[1766122501226,0.0058,86834.0,86820.0,0.59074]
[1766122501426,0.68456222,86830.0,86821.0,0.0058]
[1766122503180,0.01151649,86832.0,86821.0,0.0058]
[1766122503379,0.69607884,86831.0,86821.0,0.0058]
[1766122503581,0.01151688,86829.0,86821.0,0.0058]
[1766122503742,0.01034282,86828.0,86821.0,0.0058]
[1766122504166,0.01034282,86830.0,86821.0,0.0058]
[1766122504340,0.02185957,86830.0,86821.0,0.0058]
[1766122504548,0.01034282,86830.0,86821.0,0.0058]
[1766122505316,0.24185575,86829.0,86821.0,0.0058]
[1766122505595,0.2522005,86828.0,86821.0,0.0058]
[1766122505759,0.24185768,86828.0,86821.0,0.0058]
[1766122505953,0.24185575,86829.0,86821.0,0.0058]
[1766122505954,0.01034282,86827.0,86821.0,0.0058]
[1766122506163,0.68456222,86823.0,86812.0,1.06644]
[1766122506368,0.68456222,86822.0,86821.0,3e-08]
[1766122506576,0.47446,86826.0,86820.0,0.0058]
[1766122512857,0.2385723,86826.0,86820.0,0.0058]
[1766122516877,0.47446,86832.0,86820.0,0.47658]
[1766122517204,0.47446,86831.0,86820.0,1.16114222]
[1766122519283,0.47446,86831.0,86820.0,0.47658]
[1766122519480,0.47446,86830.0,86820.0,1.16114222]
[1766122520287,0.47446,86830.0,86820.0,0.47658]
[1766122520486,0.47446,86830.0,86820.0,1.16114222]
[1766122521128,0.47446,86830.0,86820.0,0.47658]
[1766122521336,0.47446,86830.0,86820.0,1.16114222]
[1766122522103,0.0058,86833.0,86820.0,0.69036222]
[1766122522311,0.54881452,86849.0,86827.0,0.59566]
[1766122522516,0.54881452,86849.0,86820.0,1.38644252]
[1766122522517,0.24180428,86848.0,86835.0,0.59566]
[1766122522718,0.01151436,86848.0,86836.0,1.06644]
[1766122522906,0.47446,86848.0,86836.0,1.065341]
[1766122523276,0.47446,86848.0,86837.0,0.59566]
[1766122523888,0.0058,86847.0,86839.0,0.59566]
[1766122524036,0.0058,86849.0,86839.0,0.59566]
[1766122525006,0.0058,86849.0,86839.0,0.59577002]
[1766122525459,0.0058,86850.0,86839.0,0.59577002]
[1766122525864,0.0058,86850.0,86839.0,0.00011002]
[1766122526132,0.0058,86850.0,86839.0,0.59577002]
[1766122527622,0.0058,86850.0,86839.0,0.47089002]
[1766122527817,0.0058,86850.0,86839.0,1.06655002]
[1766122528580,0.0058,86850.0,86840.0,0.59566]
[1766122529475,0.0058,86850.0,86841.0,0.59566]
[1766122529694,0.0058,86850.0,86842.0,0.59566]
[1766122532401,0.0656475,86850.0,86842.0,0.59566]
[1766122533253,0.0656475,86850.0,86839.0,0.00011002]
[1766122533254,0.0598475,86850.0,86839.0,0.00011002]
[1766122533452,0.0598475,86849.0,86840.0,0.47078]
[1766122533663,0.0598475,86851.0,86840.0,0.47078]
[1766122533960,0.68456222,86850.0,86840.0,0.47078]
[1766122534525,0.0598475,86851.0,86840.0,0.47078]
[1766122534727,0.23027121,86857.0,86839.0,0.00011002]
[1766122534956,0.0058,86886.0,86857.0,0.001099]
[1766122535310,0.0058,86886.0,86864.0,0.59566]
[1766122535311,0.68456222,86880.0,86864.0,0.59566]
[1766122535483,0.68456222,86880.0,86866.0,0.59566]
[1766122535844,0.68456222,86880.0,86871.0,0.57112]
[1766122536045,0.0058,86886.0,86880.0,0.001099]
[1766122536276,0.0058,86886.0,86871.0,0.58263132]
[1766122536505,0.0058,86886.0,86872.0,0.57112]
[1766122536683,0.68456222,86890.0,86879.0,0.57112]
[1766122536884,0.68467213,86890.0,86879.0,0.57692]
[1766122537426,0.00010991,86890.0,86879.0,0.57692]
[1766122537850,0.00010991,86890.0,86880.0,0.57112]
[1766122538091,9.1e-07,86890.0,86880.0,0.57112]
[1766122539299,9.1e-07,86890.0,86879.0,0.0058]
[1766122539499,9.1e-07,86890.0,86880.0,0.57112]
[1766122539669,9.1e-07,86890.0,86880.0,0.58263012]
[1766122540078,9.1e-07,86890.0,86882.0,0.57112]
[1766122540497,9.1e-07,86890.0,86885.0,0.57112]
[1766122540696,9.1e-07,86890.0,86887.0,0.57112]
[1766122541043,9.1e-07,86890.0,86887.0,0.5826292]
[1766122541186,9.1e-07,86890.0,86888.0,0.57112]
[1766122543944,9.1e-07,86890.0,86889.0,0.57112]
[1766122544543,9.1e-07,86890.0,86887.0,0.24169305]
[1766122545330,9.1e-07,86890.0,86887.0,0.81281305]
[1766122546446,9.1e-07,86890.0,86887.0,0.5826292]
[1766122547403,9.1e-07,86890.0,86887.0,0.57112]
[1766122547657,9.1e-07,86890.0,86887.0,0.5826292]
[1766122548564,9.1e-07,86890.0,86887.0,0.57112]
[1766122549171,9.1e-07,86890.0,86888.0,0.23018098]
[1766122549375,9.1e-07,86890.0,86889.0,0.57112]
[1766122550353,9.1e-07,86890.0,86889.0,0.80129873]
[1766122553101,9.1e-07,86890.0,86889.0,0.84737873]
[1766122556305,0.47172,86913.0,86898.0,0.57112]
[1766122556521,0.47172,86913.0,86900.0,0.57112]
[1766122557239,0.04612,86915.0,86900.0,0.57112]
[1766122557446,0.0058,86916.0,86900.0,0.57112]
[1766122557772,0.0058,86916.0,86901.0,0.57112]
[1766122557926,0.0058,86916.0,86899.0,0.005691]
[1766122558957,1.04527,86915.0,86899.0,0.005691]
[1766122559155,0.57355,86915.0,86899.0,0.005691]
[1766122560439,0.58505549,86915.0,86899.0,0.005691]
[1766122561000,0.57355,86915.0,86899.0,0.005691]
[1766122561204,1.04527,86913.0,86899.0,0.005691]
[1766122562054,0.0058,86916.0,86901.0,0.6309675]
[1766122562215,0.0004,86917.0,86907.0,0.57112]
[1766122562421,0.00050989,86917.0,86908.0,0.0058]
[1766122566614,0.00050989,86917.0,86909.0,0.79869]
[1766122567053,0.0058,86925.0,86912.0,0.21583]
[1766122567197,0.24738762,86925.0,86914.0,0.21583]
[1766122567384,0.24738762,86925.0,86914.0,0.22173989]
[1766122567631,0.24159087,86924.0,86914.0,0.22173989]
[1766122567857,0.01150443,86923.0,86914.0,0.22173989]
[1766122568052,0.01150469,86921.0,86914.0,0.22173989]
[1766122568281,0.24159332,86923.0,86914.0,0.00590989]
[1766122568282,1.349178,86922.0,86914.0,0.00590989]
[1766122568460,1.10758,86922.0,86914.0,0.00590989]
[1766122568693,0.0115043,86924.0,86914.0,0.00590989]
[1766122568856,0.01150443,86923.0,86914.0,0.00590989]
[1766122569679,0.24159111,86924.0,86914.0,0.00590989]
[1766122570014,0.0115043,86924.0,86914.0,0.00590989]
[1766122570219,0.24739226,86925.0,86914.0,0.00590989]
[1766122570583,0.0115043,86924.0,86914.0,0.22173989]
[1766122570988,0.24159226,86925.0,86914.0,0.22173989]
[1766122571766,0.48759,86869.0,86849.0,0.04608]
[1766122571971,0.61999,86870.0,86849.0,0.04608]
[1766122571972,0.00199998,86860.0,86849.0,0.00036659]
[1766122572175,0.0115145,86847.0,86821.0,0.0598475]
[1766122572375,0.00099999,86840.0,86822.0,0.05188]
[1766122572532,0.00099999,86840.0,86826.0,0.0598475]
[1766122572878,0.00099999,86840.0,86827.0,0.05188]
[1766122573076,0.00099999,86840.0,86828.0,0.05188]
[1766122573077,0.01251542,86840.0,86828.0,0.05188]
[1766122573434,0.00099999,86840.0,86828.0,0.05188]
[1766122574871,0.0006334,86840.0,86828.0,0.05188]
[1766122575043,0.0006334,86840.0,86830.0,0.68312076]
[1766122575869,0.06430758,86853.0,86830.0,0.68312076]
[1766122576029,0.0006334,86850.0,86830.0,0.69463751]
[1766122576234,0.0006334,86850.0,86830.0,0.68312076]
[1766122576449,0.0006334,86840.0,86830.0,0.68312076]
[1766122576651,0.55031967,86855.0,86831.0,0.01151662]
[1766122576856,0.0006334,86860.0,86841.0,0.0598475]
[1766122577075,0.0006334,86860.0,86842.0,0.01961819]
[1766122577295,0.0006334,86860.0,86842.0,0.0058]
[1766122577498,0.0006334,86860.0,86846.0,0.01151463]
[1766122577719,0.01151079,86875.0,86842.0,0.01731516]
[1766122577720,0.61999,86876.0,86860.0,0.0001]
[1766122578038,0.0006334,86870.0,86861.0,0.0058]
[1766122579010,0.0006334,86870.0,86861.0,0.00491091]
[1766122579502,0.01214485,86870.0,86861.0,0.00491091]
[1766122579912,0.0006334,86870.0,86861.0,0.00491091]
[1766122580194,0.01214485,86870.0,86861.0,0.00491091]
[1766122580429,0.01151158,86869.0,86861.0,0.00491091]
[1766122580632,0.01214485,86870.0,86861.0,0.00491091]
[1766122580833,0.0006334,86870.0,86861.0,0.00491091]
[1766122582771,0.0006334,86870.0,86862.0,0.05192]
[1766122586459,0.0006334,86870.0,86863.0,0.02532723]
[1766122586771,0.48759,86890.0,86864.0,0.01151224]
[1766122586930,0.48759,86890.0,86870.0,0.0598475]
[1766122587138,0.48759,86890.0,86871.0,0.01961358]
[1766122587335,0.48759,86890.0,86871.0,0.0058]
[1766122588603,0.48759,86890.0,86871.0,0.00399483]
[1766122590262,0.48759,86890.0,86872.0,0.01381342]
[1766122590466,0.61999,86895.0,86872.0,0.01381342]
[1766122590467,0.61999,86895.0,86873.0,0.01151105]
[1766122590668,0.48759,86898.0,86875.0,0.01151079]
[1766122590866,0.48759,86898.0,86874.0,0.24172696]
[1766122591070,0.48759,86898.0,86875.0,0.01151079]
[1766122591268,0.01150787,86897.0,86871.0,0.00399483]
[1766122591513,0.72925278,86898.0,86872.0,0.01151118]
[1766122591718,0.01150787,86897.0,86872.0,0.01151118]
[1766122591889,0.45173143,86907.0,86884.0,0.07135709]
[1766122591890,0.01805781,86907.0,86884.0,0.07135709]
[1766122592060,0.01805781,86907.0,86885.0,0.07724081]
[1766122592262,0.01805781,86907.0,86886.0,0.01150933]
[1766122592613,0.49909589,86912.0,86885.0,0.30743002]
[1766122592614,0.61999,86920.0,86902.0,0.0598475]
[1766122592888,0.61999,86920.0,86903.0,0.05192]
[1766122593412,0.61999,86920.0,86904.0,0.01380834]
[1766122593606,0.61999,86920.0,86903.0,0.05192]
[1766122593807,0.01150496,86919.0,86903.0,0.05192]
[1766122594243,0.2416055,86919.0,86903.0,0.05192]
[1766122594421,0.01150522,86917.0,86903.0,0.05192]
[1766122594628,0.01150509,86918.0,86903.0,0.05192]
[1766122594907,0.61999,86917.0,86903.0,0.05192]
[1766122595962,0.63149522,86917.0,86903.0,0.05192]
[1766122596317,0.61999,86917.0,86903.0,0.05192]
[1766122598241,0.01150536,86916.0,86903.0,0.05192]
[1766122598442,0.24161774,86915.0,86903.0,0.05192]
[1766122598660,0.01150575,86913.0,86903.0,0.05192]
[1766122598863,0.24161774,86915.0,86903.0,0.05192]
[1766122599070,0.01150562,86914.0,86903.0,0.05192]
[1766122599283,0.01150549,86915.0,86903.0,0.05192]
[1766122599687,0.01150575,86913.0,86903.0,0.05029535]
[1766122599898,0.24161827,86914.0,86903.0,0.05029535]
[1766122600123,0.49909509,86918.0,86903.0,0.05029535]
[1766122600313,0.00036653,86920.0,86904.0,0.0598475]
[1766122600512,0.01187136,86920.0,86904.0,0.0598475]
[1766122600758,0.01150496,86919.0,86904.0,0.0598475]
[1766122601482,0.01150509,86918.0,86904.0,0.0598475]
[1766122602106,0.01150522,86917.0,86904.0,0.0598475]
[1766122602358,0.24160754,86918.0,86904.0,0.0598475]
[1766122602506,0.01150509,86918.0,86904.0,0.0598475]
[1766122602708,0.01150496,86919.0,86904.0,0.0598475]
[1766122602941,0.81161967,86920.0,86904.0,0.0598475]
[1766122603150,0.58152136,86920.0,86904.0,0.0598475]
[1766122603350,0.57001653,86920.0,86904.0,0.0598475]
[1766122603552,0.01150496,86919.0,86904.0,0.0598475]
[1766122604161,0.81161916,86920.0,86904.0,0.0598475]